bitfinex-derivatives/quotes_BNBF0:USTF0_20250908
["timestamp","ask_amount","ask_price","bid_price","bid_amount"]
[1757374822054,1.81135537,878.12,874.04,0.19830246]
[1757374822355,1.81135592,878.11,874.04,0.19830246]
[1757374822555,1.81135592,878.1,874.04,0.19830246]
[1757374822755,0.67418557,878.09,874.04,0.19830246]
[1757374822955,0.67418557,878.08,874.04,0.19830246]
[1757374823152,0.67418557,878.07,874.04,0.19830246]
[1757374823354,0.67418557,878.06,874.04,0.19830246]
[1757374823552,0.67418557,878.05,874.04,0.19830246]
[1757374823756,0.67418557,878.04,874.04,0.19830246]
[1757374823951,0.67418557,878.03,874.04,0.19830246]
[1757374824252,0.67418557,878.02,874.04,0.19830246]
[1757374824452,0.67418557,878.01,874.04,0.19830246]
[1757374824654,0.67418557,878.0,874.04,0.19830246]
[1757374824858,0.67418557,877.99,874.04,0.19830246]
[1757374825058,0.67418557,877.98,874.04,0.19830246]
[1757374825258,0.67418557,877.97,874.04,0.19830246]
[1757374825458,0.67418557,877.96,874.04,0.19830246]
[1757374825655,0.67418557,877.95,874.04,0.19830246]
[1757374825856,0.67418557,877.94,874.04,0.19830246]
[1757374826054,0.67418557,877.93,874.04,0.19830246]
[1757374826255,0.67418557,877.92,874.04,0.19830246]
[1757374826456,0.67418557,877.91,874.04,0.19830246]
[1757374826654,0.67418557,877.9,874.04,0.19830246]
[1757374826857,0.67418557,877.89,874.04,0.19830246]
[1757374827058,0.67418557,877.88,874.04,0.19830246]
[1757374827255,0.67418557,877.87,874.04,0.19830246]
[1757374827459,0.67418557,877.86,874.04,0.19830246]
[1757374827758,0.67418557,877.85,874.04,0.19830246]
[1757374827959,0.67418557,877.84,874.04,0.19830246]
[1757374828255,0.67418557,877.83,874.04,0.19830246]
[1757374828453,0.67418557,877.82,874.04,0.19830246]
[1757374828660,0.67418557,877.81,874.04,0.19830246]
[1757374828861,0.67418557,877.8,874.04,0.19830246]
[1757374829060,0.67418557,877.79,874.04,0.19830246]
[1757374829258,0.67418557,877.78,874.04,0.19830246]
[1757374829456,0.67418557,877.77,874.04,0.19830246]
[1757374829758,0.67418557,877.76,874.04,0.19830246]
[1757374829959,0.67418557,877.75,874.04,0.19830246]
[1757374830160,0.67418557,877.74,874.04,0.19830246]
[1757374830358,0.67418557,877.73,874.04,0.19830246]
[1757374830661,0.67418557,877.72,874.04,0.19830246]
[1757374830961,0.67418557,877.71,874.04,0.19830246]
[1757374831161,0.67418557,877.7,874.04,0.19830246]
[1757374831363,0.67418557,877.69,874.04,0.19830246]
[1757374831562,0.67418557,877.68,874.04,0.19830246]
[1757374831758,0.67418557,877.67,874.04,0.19830246]
[1757374832063,0.67418557,877.66,874.04,0.19830246]
[1757374832260,0.67418557,877.65,874.04,0.19830246]
[1757374832564,0.67418557,877.64,874.04,0.19830246]
[1757374832763,0.67418557,877.63,874.04,0.19830246]
[1757374832964,0.67418557,877.62,874.04,0.19830246]
[1757374833164,0.67418557,877.61,874.04,0.19830246]
[1757374833466,0.67418557,877.6,874.04,0.19830246]
[1757374833659,0.67418557,877.59,874.04,0.19830246]
[1757374833960,0.67418557,877.58,874.04,0.19830246]
[1757374834161,0.67418557,877.57,874.04,0.19830246]
[1757374834360,1.5233123,876.91,874.04,0.19830246]
[1757374834565,0.67418557,876.9,874.04,0.19830246]
[1757374834765,1.5233123,876.77,874.04,0.19830246]
[1757374835262,1.5233123,876.77,874.16,2.5537456]
[1757374835664,1.5233123,876.77,874.15,2.5537456]
[1757374835864,1.5233123,877.49,874.15,2.5537456]
[1757374836060,2.5563988,878.91,874.15,2.5537456]
[1757374836061,2.19510454,877.48,874.15,2.5537456]
[1757374836260,2.19510454,877.47,874.04,0.19830246]
[1757374836459,0.67179224,877.46,874.04,0.19830246]
[1757374836664,0.67179224,877.45,874.04,0.19830246]
[1757374836860,0.67179224,877.44,874.04,0.19830246]
[1757374837161,0.67179224,877.43,874.04,0.19830246]
[1757374837364,0.67179224,877.42,874.04,0.19830246]
[1757374837662,0.67179224,877.41,874.04,0.19830246]
[1757374837861,0.67179224,877.4,874.04,0.19830246]
[1757374838063,2.19510454,877.39,874.04,0.19830246]
[1757374838260,0.67179224,877.38,874.04,0.19830246]
[1757374838463,0.67179224,877.37,874.04,0.19830246]
[1757374838661,0.67179224,877.36,874.04,0.19830246]
[1757374838862,0.67179224,877.35,874.04,0.19830246]
[1757374839062,0.67179224,877.34,874.04,0.19830246]
[1757374839261,0.67179224,877.33,874.04,0.19830246]
[1757374839466,0.67179224,877.32,874.04,0.19830246]
[1757374839665,0.67179224,877.31,874.04,0.19830246]
[1757374839866,0.67179224,877.3,874.04,0.19830246]
[1757374840066,0.67179224,877.29,874.04,0.19830246]
[1757374840362,0.67179224,877.28,874.04,0.19830246]
[1757374840561,0.67179224,877.27,874.04,0.19830246]
[1757374840766,0.67179224,877.26,874.04,0.19830246]
[1757374840967,0.67179224,877.25,874.04,0.19830246]
[1757374841164,0.67179224,877.24,874.04,0.19830246]
[1757374841365,0.67179224,877.23,874.04,0.19830246]
[1757374841570,0.67179224,877.22,874.04,0.19830246]
[1757374841772,0.67179224,877.21,874.04,0.19830246]
[1757374841969,0.67179224,877.2,874.04,0.19830246]
[1757374842168,0.67179224,877.19,874.04,0.19830246]
[1757374842371,2.5563988,878.63,874.04,0.19830246]
[1757374842372,0.67179224,877.18,874.04,0.19830246]
[1757374842569,0.67179224,877.17,874.04,0.19830246]
[1757374842772,0.67179224,877.16,874.04,0.19830246]
[1757374842974,0.67179224,877.15,874.04,0.19830246]
[1757374843176,0.67179224,877.14,874.04,0.19830246]
[1757374843378,0.67179224,877.13,874.04,0.19830246]
[1757374843577,0.67179224,877.12,874.04,0.19830246]
[1757374843872,0.67179224,877.11,874.04,0.19830246]
[1757374844072,0.67179224,877.1,874.04,0.19830246]
[1757374844276,0.67179224,877.09,874.04,0.19830246]
[1757374844474,0.67179224,877.08,874.04,0.19830246]
[1757374844675,0.67179224,877.07,874.04,0.19830246]
[1757374844878,0.67179224,877.06,874.04,0.19830246]
[1757374845074,0.67179224,877.05,874.04,0.19830246]
[1757374845274,0.67179224,877.04,874.04,0.19830246]
[1757374845574,0.67179224,877.03,874.04,0.19830246]
[1757374845874,0.67179224,877.02,874.04,0.19830246]
[1757374846081,0.67179224,877.01,874.04,0.19830246]
[1757374846380,0.67179224,877.0,874.04,0.19830246]
[1757374846580,0.67179224,876.99,874.04,0.19830246]
[1757374846781,0.67179224,876.98,874.04,0.19830246]
[1757374847081,0.67179224,876.97,874.04,0.19830246]
[1757374847280,0.67179224,876.96,874.04,0.19830246]
[1757374847579,0.67179224,876.95,874.04,0.19830246]
[1757374847877,0.67179224,876.94,874.04,0.19830246]
[1757374848081,0.67179224,876.93,874.04,0.19830246]
[1757374848282,0.67179224,876.92,874.04,0.19830246]
[1757374848484,0.67179224,876.91,874.04,0.19830246]
[1757374848680,0.67179224,876.9,874.04,0.19830246]
[1757374848882,0.67179224,876.89,874.04,0.19830246]
[1757374849080,2.5563988,878.54,874.04,0.19830246]
[1757374849081,0.67179224,876.88,874.04,0.19830246]
[1757374849282,1.5233123,877.23,874.04,0.19830246]
[1757374849481,0.66928989,877.22,874.04,0.19830246]
[1757374849681,0.66928989,877.21,874.04,0.19830246]
[1757374849886,0.66928989,877.2,874.04,0.19830246]
[1757374850090,0.66928989,877.19,874.04,0.19830246]
[1757374850287,0.66928989,877.18,874.04,0.19830246]
[1757374850487,0.66928989,877.17,874.04,0.19830246]
[1757374850692,0.66928989,877.16,874.04,0.19830246]
[1757374850990,0.66928989,877.15,874.04,0.19830246]
[1757374851191,0.66928989,877.14,874.04,0.19830246]
[1757374851391,0.66928989,877.13,874.04,0.19830246]
[1757374851592,0.66928989,877.12,874.04,0.19830246]
[1757374851791,0.66928989,877.11,874.04,0.19830246]
[1757374851991,0.66928989,877.1,874.04,0.19830246]
[1757374852187,2.19260219,877.09,874.04,0.19830246]
[1757374852389,0.66928989,877.08,874.04,0.19830246]
[1757374852692,0.66928989,877.07,874.04,0.19830246]
[1757374852892,0.66928989,877.06,874.04,0.19830246]
[1757374853187,0.66928989,877.05,874.04,0.19830246]
[1757374853391,1.5233123,876.87,874.04,0.19830246]
[1757374853590,0.66928989,876.86,874.04,0.19830246]
[1757374853789,0.66928989,876.85,874.04,0.19830246]
[1757374853990,0.66928989,876.84,874.04,0.19830246]
[1757374854191,1.5233123,876.82,874.04,0.19830246]
[1757374854493,1.5233123,876.79,874.04,0.19830246]
[1757374854689,0.66928989,876.78,874.04,0.19830246]
[1757374854894,0.66928989,876.77,874.04,0.19830246]
[1757374855094,0.66928989,876.76,874.04,0.19830246]
[1757374855296,0.66928989,876.75,874.04,0.19830246]
[1757374855492,0.66928989,876.74,874.04,0.19830246]
[1757374855696,0.66928989,876.73,874.04,0.19830246]
[1757374855896,0.66928989,876.72,874.04,0.19830246]
[1757374856094,0.66928989,876.71,874.04,0.19830246]
[1757374856294,0.66928989,876.7,874.04,0.19830246]
[1757374856490,1.5233123,876.8,874.04,0.19830246]
[1757374856695,0.66983895,876.79,874.04,0.19830246]
[1757374856995,0.66983895,876.78,874.04,0.19830246]
[1757374857193,0.66983895,876.77,874.04,0.19830246]
[1757374857395,0.66983895,876.76,874.04,0.19830246]
[1757374857595,0.66983895,876.75,874.04,0.19830246]
[1757374857798,0.66983895,876.74,874.04,0.19830246]
[1757374857993,0.66983895,876.73,874.04,0.19830246]
[1757374858195,0.66983895,876.72,874.04,0.19830246]
[1757374858396,0.66983895,876.71,874.04,0.19830246]
[1757374858594,0.66983895,876.7,874.04,0.19830246]
[1757374858795,1.5233123,876.8,874.04,0.19830246]
[1757374858994,0.67007544,876.79,874.04,0.19830246]
[1757374859195,0.67007544,876.78,874.04,0.19830246]
[1757374859495,0.67007544,876.77,874.04,0.19830246]
[1757374859700,0.67007544,876.76,874.04,0.19830246]
[1757374859898,0.67007544,876.75,874.04,0.19830246]
[1757374860194,0.67007544,876.74,874.04,0.19830246]
[1757374860399,0.67007544,876.73,874.04,0.19830246]
[1757374860699,0.67007544,876.72,874.04,0.19830246]
[1757374860999,0.67007544,876.71,874.04,0.19830246]
[1757374861197,1.5233123,876.81,874.04,0.19830246]
[1757374861198,0.67007544,876.7,874.04,0.19830246]
[1757374861396,1.5233123,876.82,874.04,0.19830246]
[1757374861597,0.67034351,876.81,874.04,0.19830246]
[1757374861795,0.67034351,876.8,874.04,0.19830246]
[1757374861998,1.5233123,876.82,874.04,0.19830246]
[1757374861999,0.67034351,876.79,874.04,0.19830246]
[1757374862200,0.67034351,876.78,874.04,0.19830246]
[1757374862497,0.67034351,876.77,874.04,0.19830246]
[1757374862701,0.67034351,876.76,874.04,0.19830246]
[1757374862901,0.67034351,876.75,874.04,0.19830246]
[1757374863101,0.67034351,876.74,874.04,0.19830246]
[1757374863397,1.5233123,876.7,874.04,0.19830246]
[1757374864499,1.5233123,876.7,874.1,2.5537456]
[1757374865101,1.5233123,876.7,874.11,2.5537456]
[1757374865500,1.5233123,876.7,874.14,2.5537456]
[1757374866503,1.5233123,876.7,874.17,2.5537456]
[1757374867106,1.5233123,876.7,874.14,2.5537456]
[1757374867609,1.5233123,876.7,874.22,2.5537456]
[1757374868608,1.5233123,876.7,874.28,2.5537456]
[1757374869208,1.5233123,876.7,874.32,2.5537456]
[1757374869804,1.5233123,876.7,874.34,2.5537456]
[1757374870406,1.5233123,876.67,874.38,2.5537456]
[1757374870908,1.5233123,876.67,874.27,2.5537456]
[1757374871310,1.5233123,876.6,874.23,2.5537456]
[1757374871508,1.5233123,876.61,874.23,2.5537456]
[1757374871707,0.6724849,876.6,874.09,2.5537456]
[1757374871906,1.5233123,876.61,874.09,2.5537456]
[1757374871907,1.5233123,876.64,874.09,2.5537456]
[1757374872108,1.5233123,876.62,874.09,2.5537456]
[1757374872309,0.6724849,876.61,874.07,2.5537456]
[1757374872609,0.6724849,876.6,874.07,2.5537456]
[1757374872807,1.5233123,876.62,874.07,2.5537456]
[1757374873111,1.5233123,876.6,874.07,2.5537456]
[1757374873310,1.5233123,876.6,874.09,2.5537456]
[1757374874313,1.5233123,876.6,874.12,2.5537456]
[1757374874912,0.67351481,876.59,874.16,2.5537456]
[1757374875110,1.5233123,876.55,874.16,2.5537456]
[1757374875412,1.5233123,876.49,874.05,2.5537456]
[1757374876412,1.5233123,876.49,874.04,0.19830246]
[1757374876912,1.5233123,876.49,874.09,2.5537456]
[1757374877408,0.68100023,876.48,874.15,2.5537456]
[1757374877611,1.5233123,876.48,874.15,2.5537456]
[1757374877813,1.5233123,876.44,874.15,2.5537456]
[1757374878013,1.5233123,876.44,874.12,2.5537456]
[1757374878415,1.5233123,876.39,874.07,2.5537456]
[1757374879514,1.5233123,876.36,874.06,2.5537456]
[1757374879916,1.5233123,876.36,874.04,2.75204806]
[1757374880616,1.5233123,876.36,874.04,0.19830246]
[1757374881715,0.68030129,876.35,874.04,0.19830246]
[1757374881914,1.5233123,876.35,874.04,0.19830246]
[1757374882115,1.5233123,876.31,874.04,0.19830246]
[1757374882415,1.5233123,876.28,874.04,0.19830246]
[1757374886016,1.5233123,876.36,874.04,0.19830246]
[1757374886215,2.20274969,876.35,874.04,0.19830246]
[1757374886420,0.67943739,876.34,874.04,0.19830246]
[1757374886620,0.67943739,876.33,874.04,0.19830246]
[1757374886919,2.20274969,876.32,874.04,0.19830246]
[1757374887120,0.67943739,876.31,874.04,0.19830246]
[1757374887320,0.67943739,876.3,874.04,0.19830246]
[1757374887516,0.67943739,876.29,874.04,0.19830246]
[1757374887720,0.67943739,876.28,874.04,0.19830246]
[1757374888016,0.67943739,876.27,874.04,0.19830246]
[1757374888221,0.67943739,876.26,874.04,0.19830246]
[1757374888519,0.67943739,876.25,874.04,0.19830246]
[1757374888719,1.5233123,876.31,874.04,0.19830246]
[1757374888915,0.67891972,876.3,874.04,0.19830246]
[1757374889220,0.67891972,876.29,874.04,0.19830246]
[1757374889519,0.67874928,876.28,874.04,0.19830246]
[1757374889719,0.67874928,876.27,874.04,0.19830246]
[1757374890019,0.67874928,876.26,874.04,0.19830246]
[1757374890319,0.67874928,876.25,874.04,0.19830246]
[1757374890520,0.67874928,876.24,874.04,0.19830246]
[1757374890722,1.5233123,876.29,874.04,0.19830246]
[1757374890917,0.67859817,876.28,874.04,0.19830246]
[1757374891118,0.67859817,876.27,874.04,0.19830246]
[1757374891422,0.67859817,876.26,874.04,0.19830246]
[1757374891723,0.67859817,876.25,874.04,0.19830246]
[1757374892018,0.67859817,876.24,874.04,0.19830246]
[1757374892221,1.5233123,876.26,874.04,0.19830246]
[1757374892419,0.67830968,876.25,874.04,0.19830246]
[1757374892622,0.67830968,876.24,874.04,0.19830246]
[1757374892922,1.5233123,876.26,874.04,0.19830246]
[1757374893121,2.20162206,876.25,874.04,0.19830246]
[1757374893320,0.67830976,876.24,874.04,0.19830246]
[1757374893622,1.5233123,876.25,874.04,0.19830246]
[1757374893824,0.67818265,876.24,874.04,0.19830246]
[1757374894024,1.5233123,876.25,874.04,0.19830246]
[1757374894225,2.20137825,876.24,874.04,0.19830246]
[1757374894425,1.5233123,876.24,874.04,0.19830246]
[1757374914039,1.5233123,876.55,874.04,0.19830246]
[1757374914240,2.5563988,876.57,874.04,0.19830246]
[1757374914241,1.5233123,876.48,874.04,0.19830246]
[1757374914539,2.202729,876.47,874.04,0.19830246]
[1757374914740,0.6794167,876.46,874.04,0.19830246]
[1757374914939,0.6794167,876.45,874.04,0.19830246]
[1757374915237,0.6794167,876.44,874.04,0.19830246]
[1757374915436,0.6794167,876.43,874.04,0.19830246]
[1757374915636,1.5233123,876.47,874.04,0.19830246]
[1757374915637,0.6794167,876.42,874.04,0.19830246]
[1757374915841,0.6794167,876.41,874.04,0.19830246]
[1757374916035,0.6794167,876.4,874.04,0.19830246]
[1757374916236,0.6794167,876.39,874.04,0.19830246]
[1757374916442,0.6794167,876.38,874.04,0.19830246]
[1757374916737,0.6794167,876.37,874.04,0.19830246]
[1757374917041,0.6794167,876.36,874.04,0.19830246]
[1757374917241,0.6794167,876.35,874.04,0.19830246]
[1757374917441,0.6794167,876.34,874.04,0.19830246]
[1757374917641,0.6794167,876.33,874.04,0.19830246]
[1757374917844,0.6794167,876.32,874.04,0.19830246]
[1757374918038,0.6794167,876.31,874.04,0.19830246]
[1757374918242,0.6794167,876.3,874.04,0.19830246]
[1757374918441,0.6794167,876.29,874.04,0.19830246]
[1757374918639,0.6794167,876.28,874.04,0.19830246]
[1757374918842,0.6794167,876.27,874.04,0.19830246]
[1757374919044,0.6794167,876.26,874.04,0.19830246]
[1757374919239,0.6794167,876.25,874.04,0.19830246]
[1757374919441,0.6794167,876.24,874.04,0.19830246]
[1757374919640,0.6794167,876.23,874.04,0.19830246]
[1757374919840,0.6794167,876.22,874.04,0.19830246]
[1757374920045,0.6794167,876.21,874.04,0.19830246]
[1757374920242,0.6794167,876.2,874.04,0.19830246]
[1757374920446,0.6794167,876.19,874.04,0.19830246]
[1757374920744,0.6794167,876.18,874.04,0.19830246]
[1757374920942,0.6794167,876.17,874.04,0.19830246]
[1757374921145,0.6794167,876.16,874.04,0.19830246]
[1757374921346,1.5233123,876.49,874.04,0.19830246]
[1757374921543,0.67979678,876.48,874.04,0.19830246]
[1757374921747,0.67979678,876.47,874.04,0.19830246]
[1757374922048,0.67979678,876.46,874.04,0.19830246]
[1757374922247,1.5233123,876.49,874.04,0.19830246]
[1757374922248,0.67979678,876.45,874.04,0.19830246]
[1757374922446,0.67979678,876.44,874.04,0.19830246]
[1757374922746,0.67979678,876.43,874.04,0.19830246]
[1757374923046,0.67979678,876.42,874.04,0.19830246]
[1757374923247,0.67979678,876.41,874.04,0.19830246]
[1757374923442,0.67979678,876.4,874.04,0.19830246]
[1757374923648,0.67979678,876.39,874.04,0.19830246]
[1757374923858,0.67979678,876.38,874.04,0.19830246]
[1757374924057,1.5233123,876.16,874.04,0.19830246]
[1757374924261,1.5233123,876.14,874.04,0.19830246]
[1757374924457,0.68013077,876.13,874.04,0.19830246]
[1757374924658,1.5233123,876.07,874.04,0.19830246]
[1757374924861,0.68013077,876.06,874.04,0.19830246]
[1757374925062,1.5233123,876.07,874.04,0.19830246]
[1757374925261,0.68021636,876.06,874.04,0.19830246]
[1757374925460,1.5233123,876.07,874.04,0.19830246]
[1757374925658,0.68016895,876.06,874.04,0.19830246]
[1757374925859,1.5233123,876.07,874.04,0.19830246]
[1757374926062,0.68016895,876.06,874.04,0.19830246]
[1757374926259,1.5233123,876.08,874.04,0.19830246]
[1757374926458,0.68027466,876.07,874.04,0.19830246]
[1757374926659,0.68027466,876.06,874.04,0.19830246]
[1757374926863,1.5233123,876.08,874.04,0.19830246]
[1757374927163,1.5233123,876.01,874.04,0.19830246]
[1757374936065,2.20426551,876.0,874.04,0.19830246]
[1757374936368,1.5233123,876.0,874.04,0.19830246]
[1757374938565,1.5233123,875.97,874.04,0.19830246]
[1757374940873,2.20441124,875.96,874.04,0.19830246]
[1757374941169,1.5233123,875.96,874.04,0.19830246]
[1757374949481,1.5233123,875.97,874.04,0.19830246]
[1757374949679,0.6808834,875.96,874.04,0.19830246]
[1757374949978,1.5233123,875.97,874.04,0.19830246]
[1757374950182,0.68088961,875.96,874.04,0.19830246]
[1757374950481,1.5233123,875.97,874.04,0.19830246]
[1757374950675,0.68086718,875.96,874.04,0.19830246]
[1757374950881,1.5233123,875.97,874.04,0.19830246]
[1757374951077,0.68086738,875.96,874.04,0.19830246]
[1757374951281,1.5233123,875.97,874.04,0.19830246]
[1757374951481,0.68085239,875.96,874.04,0.19830246]
[1757374951681,1.5233123,875.97,874.04,0.19830246]
[1757374951877,0.68085239,875.96,874.04,0.19830246]
[1757374952081,1.5233123,875.97,874.04,0.19830246]
[1757374952275,0.6808564,875.96,874.04,0.19830246]
[1757374952479,1.5233123,875.97,874.04,0.19830246]
[1757374952679,0.6808422,875.96,874.04,0.19830246]
[1757374952878,1.5233123,875.97,874.04,0.19830246]
[1757374953178,0.6808422,875.96,874.04,0.19830246]
[1757374953478,1.5233123,875.97,874.04,0.19830246]
[1757374953677,0.68083643,875.96,874.04,0.19830246]
[1757374953879,1.5233123,875.97,874.04,0.19830246]
[1757374954079,2.20414873,875.96,874.04,0.19830246]
[1757374954278,1.5233123,875.96,874.04,0.19830246]
[1757374966295,0.68092432,875.95,874.04,0.19830246]
[1757374966593,0.68092432,875.94,874.04,0.19830246]
[1757374966795,0.68092432,875.93,874.04,0.19830246]
[1757374967092,0.68092432,875.92,874.04,0.19830246]
[1757374967290,0.68092432,875.91,874.04,0.19830246]
[1757374967488,0.68092432,875.9,874.04,0.19830246]
[1757374967690,0.68092432,875.89,874.04,0.19830246]
[1757374967893,1.5233123,876.48,874.04,0.19830246]
[1757374968091,2.20427391,876.47,874.04,0.19830246]
[1757374968393,0.68096161,876.46,874.04,0.19830246]
[1757374968696,0.68096161,876.45,874.04,0.19830246]
[1757374968893,0.68096161,876.44,874.04,0.19830246]
[1757374969098,0.68096161,876.43,874.04,0.19830246]
[1757374969295,0.68096161,876.42,874.04,0.19830246]
[1757374969498,0.68096161,876.41,874.04,0.19830246]
[1757374969795,0.68096161,876.4,874.04,0.19830246]
[1757374969995,0.68096161,876.39,874.04,0.19830246]
[1757374970199,0.68096161,876.38,874.04,0.19830246]
[1757374970400,0.68096161,876.37,874.04,0.19830246]
[1757374970600,0.68096161,876.36,874.04,0.19830246]
[1757374970798,0.68096161,876.35,874.04,0.19830246]
[1757374971003,0.68096161,876.34,874.04,0.19830246]
[1757374971198,0.68096161,876.33,874.04,0.19830246]
[1757374971399,0.68096161,876.32,874.04,0.19830246]
[1757374971597,0.68096161,876.31,874.04,0.19830246]
[1757374971899,0.68096161,876.3,874.04,0.19830246]
[1757374972097,0.68096161,876.29,874.04,0.19830246]
[1757374972396,0.68096161,876.28,874.04,0.19830246]
[1757374972697,0.68096161,876.27,874.04,0.19830246]
[1757374972901,0.68096161,876.26,874.04,0.19830246]
[1757374973101,0.68096161,876.25,874.04,0.19830246]
[1757374973299,0.68096161,876.24,874.04,0.19830246]
[1757374973499,0.68096161,876.23,874.04,0.19830246]
[1757374973699,0.68096161,876.22,874.04,0.19830246]
[1757374973901,0.68096161,876.21,874.04,0.19830246]
[1757374974102,0.68096161,876.2,874.04,0.19830246]
[1757374974302,0.68096161,876.19,874.04,0.19830246]
[1757374974602,0.68096161,876.18,874.04,0.19830246]
[1757374974898,0.68096161,876.17,874.04,0.19830246]
[1757374975098,0.68096161,876.16,874.04,0.19830246]
[1757374975403,0.68096161,876.15,874.04,0.19830246]
[1757374975598,0.68096161,876.14,874.04,0.19830246]
[1757374975801,0.68096161,876.13,874.04,0.19830246]
[1757374976000,0.68096161,876.12,874.04,0.19830246]
[1757374976198,1.5233123,876.0,874.04,0.19830246]
[1757374976404,0.68096161,875.99,874.04,0.19830246]
[1757374976602,0.68096161,875.98,874.04,0.19830246]
[1757374976802,0.68096161,875.97,874.04,0.19830246]
[1757374977002,0.68096161,875.96,874.04,0.19830246]
[1757374977302,0.68096161,875.95,874.04,0.19830246]
[1757374977506,0.68096161,875.94,874.04,0.19830246]
[1757374977807,0.68096161,875.93,874.04,0.19830246]
[1757374978006,0.68096161,875.92,874.04,0.19830246]
[1757374978204,0.68096161,875.91,874.04,0.19830246]
[1757374978404,0.68096161,875.9,874.04,0.19830246]
[1757374978607,1.5233123,875.99,874.04,0.19830246]
[1757374978608,0.68096161,875.89,874.04,0.19830246]
[1757374978802,1.5233123,875.99,874.04,0.19830246]
[1757374979003,1.5233123,875.92,874.04,0.19830246]
[1757374979204,0.6817479,875.91,874.04,0.19830246]
[1757374979407,0.6817479,875.9,874.04,0.19830246]
[1757374979607,2.2050602,875.89,874.04,0.19830246]
[1757374979909,1.5233123,875.89,874.04,0.19830246]
[1757375004124,2.20585844,875.88,874.04,0.19830246]
[1757375004324,2.20585239,875.87,874.04,0.19830246]
[1757375004525,1.5233123,875.87,874.04,0.19830246]
[1757375012929,2.21492398,875.86,874.04,0.19830246]
[1757375013131,1.5233123,875.86,874.04,0.19830246]
[1757375017231,1.5233123,875.86,873.46,2.5537456]
[1757375017535,1.5233123,875.86,874.22,0.19844608]
[1757375017731,1.5233123,875.86,873.46,2.5537456]
[1757375017732,1.5233123,875.89,873.31,2.5537456]
[1757375017935,1.5233123,875.92,873.31,2.5537456]
[1757375018136,1.5233123,875.93,874.38,0.19842571]
[1757375018330,1.5233123,875.93,873.33,2.5537456]
[1757375018536,1.5233123,875.94,873.33,2.5537456]
[1757375019132,1.5233123,875.96,873.98,0.19842854]
[1757375019435,1.5233123,875.99,873.98,0.19842854]
[1757375022832,1.5233123,876.01,873.98,0.19842854]
[1757375023030,2.5563988,876.9,873.98,0.19842854]
[1757375023031,1.5233123,876.07,873.98,0.19842854]
[1757375023233,1.5233123,876.08,873.98,0.19842854]
[1757375027044,1.5233123,876.15,873.98,0.19842854]
[1757375027445,1.5233123,876.25,873.98,0.19842854]
[1757375027645,1.5233123,876.25,873.99,2.5537456]
[1757375028641,1.5233123,876.25,873.98,0.19842854]
[1757375037452,1.5233123,876.25,874.06,2.5537456]
[1757375039650,1.5233123,876.25,874.04,2.5537456]
[1757375041358,8.1625035,878.16,874.04,2.5537456]
[1757375041359,1.5233123,876.29,874.04,2.5537456]
[1757375041556,0.68853573,876.28,873.98,0.19842854]
[1757375041753,0.68853573,876.27,873.98,0.19842854]
[1757375041956,0.68853573,876.26,873.98,0.19842854]
[1757375042154,0.68853573,876.25,873.98,0.19842854]
[1757375042359,1.5233123,876.29,873.98,0.19842854]
[1757375042553,0.68846294,876.28,873.98,0.19842854]
[1757375042858,0.68846294,876.27,873.98,0.19842854]
[1757375043054,0.68846294,876.26,873.98,0.19842854]
[1757375043354,0.68846294,876.25,873.98,0.19842854]
[1757375043658,0.68846294,876.24,873.98,0.19842854]
[1757375043868,0.68846294,876.23,873.98,0.19842854]
[1757375044062,1.5233123,876.27,873.98,0.19842854]
[1757375044260,0.68839308,876.26,873.98,0.19842854]
[1757375044465,0.68839308,876.25,873.98,0.19842854]
[1757375044665,0.68839308,876.24,873.98,0.19842854]
[1757375044863,0.68839308,876.23,873.98,0.19842854]
[1757375045065,1.5233123,876.27,873.98,0.19842854]
[1757375045367,0.68834272,876.26,873.98,0.19842854]
[1757375045564,0.68834272,876.25,873.98,0.19842854]
[1757375045866,0.68834272,876.24,873.98,0.19842854]
[1757375046062,0.68834272,876.23,873.98,0.19842854]
[1757375046267,1.5233123,876.27,873.98,0.19842854]
[1757375046467,0.68825863,876.26,873.98,0.19842854]
[1757375046665,0.68825863,876.25,873.98,0.19842854]
[1757375046868,0.68825863,876.24,873.98,0.19842854]
[1757375047068,0.68825863,876.23,873.98,0.19842854]
[1757375047268,1.5233123,876.27,873.98,0.19842854]
[1757375047469,0.68822452,876.26,873.98,0.19842854]
[1757375047768,0.68822452,876.25,873.98,0.19842854]
[1757375047964,0.68822452,876.24,873.98,0.19842854]
[1757375048161,0.68822452,876.23,873.98,0.19842854]
[1757375048367,1.5233123,876.26,873.98,0.19842854]
[1757375048666,0.68812201,876.25,873.98,0.19842854]
[1757375048865,0.68812201,876.24,873.98,0.19842854]
[1757375049064,0.68812201,876.23,873.98,0.19842854]
[1757375049264,1.5233123,876.26,873.98,0.19842854]
[1757375049469,0.68811146,876.25,873.98,0.19842854]
[1757375049668,0.68811146,876.24,873.98,0.19842854]
[1757375049868,0.68811146,876.23,873.98,0.19842854]
[1757375050069,1.5233123,876.26,873.98,0.19842854]
[1757375050270,0.68809793,876.25,873.98,0.19842854]
[1757375050465,0.68809793,876.24,873.98,0.19842854]
[1757375050669,0.68809793,876.23,873.98,0.19842854]
[1757375050969,1.5233123,876.26,873.98,0.19842854]
[1757375051170,1.5233123,876.23,873.98,0.19842854]
[1757375059479,2.21142634,876.22,873.98,0.19842854]